{"text_format":"2","workbook":"xlsx","n_sheets":1,"sheets":["토너류"],"not_rendered":{"charts":0,"images":0,"macros":0,"external_links":0,"defined_names":3,"comments":0,"pivot_tables":0},"unopened":[],"bounds":{"document_bytes":16777216,"sheet_cells":100000,"run_cost":"one","rows_first":2000,"rows_last":500,"rows_between":2000,"halvings":0,"cell_chars":16384,"cell_head_chars":4096},"cells_cut":0,"cells_raw":0,"read":"whole","date_system":"1900"}

{"sheet":"토너류","index":0,"n_rows":193,"n_cols":7,"rows_kept":193,"cut":false,"hidden":false,"merged":[[12,0,12,5],[8,0,11,0],[192,0,192,5],[1,0,1,6],[3,0,3,1],[16,0,174,0],[16,1,61,1],[16,2,24,2],[25,2,33,2],[34,2,39,2],[40,2,43,2],[44,2,49,2],[50,2,55,2],[56,2,61,2],[62,1,91,1],[62,2,67,2],[68,2,73,2],[74,2,79,2],[80,2,85,2],[86,2,91,2],[92,1,110,1],[92,2,97,2],[98,2,110,2],[111,1,134,1],[111,2,128,2],[129,2,134,2],[135,1,162,1],[135,2,138,2],[139,2,143,2],[144,2,147,2],[148,2,151,2],[152,2,156,2],[157,2,162,2],[163,1,174,1],[163,2,174,2],[175,0,184,0],[175,1,177,1],[178,1,181,1],[178,2,179,2],[180,2,181,2],[182,1,184,1],[182,2,184,2],[185,0,186,0],[185,1,186,1],[187,0,190,0],[187,1,190,1],[187,2,190,2]]}
["[첨부2] 구매예정 물품내역서"]
["토너류 및 복사용지 견적서"]
[]
["업체명",null,null,"사업자 등록번호",null,"대표자","(인)"]
[{"$nulls":5},"투찰금액",{"$f":"G13+G193","v":0}]
[]
[]
["물품구분","분류","규격","세부규격/단위","예상수량","구매단가(VAT포함)","금액(VAT포함)"]
["복사용지","A4 ","한솔제지","A4 (80g, 2,500매) /1box",900,null,{"$f":"E9*F9","v":0}]
[null,"A4 ","더블에이","A4 (80g, 2,500매) /1box",900,null,{"$f":"E10*F10","v":0}]
[null,"B4","더블에이","A3 (80g, 2,500매) /1box",30,null,0]
[null,"A3","더블에이","B4 (80g, 2,500매) /1box",200,null,0]
["복사용지 투찰금액",{"$nulls":5},0]
[]
[]
["물품구분","제조사","출력기기명","소모품 모델 (상품코드)","예상수량","구매단가(VAT포함)","금액(VAT포함)"]
["컬러","후지제록스","- DocuCentre-IV C2263\n- DocuCentre-IV C2263(N)\n- DocuCentre-IV C2265(N)","CT201434 (검정)",51,null,{"$f":"F17*E17","v":0}]
[null,null,null,"CT201435 (파랑)",46,null,{"$f":"F18*E18","v":0}]
[null,null,null,"CT201436 (빨강)",47,null,0]
[null,null,null,"CT201437 (노랑)",48,null,0]
[null,null,null,"드럼 CT350947 (검정)",30,null,0]
[null,null,null,"드럼 CT350948 (파랑)",28,null,0]
[null,null,null,"드럼 CT350949 (빨강)",28,null,0]
[null,null,null,"드럼 CT350950 (노랑)",27,null,0]
[null,null,null,"폐토너회수통 CWAA0777",37,null,0]
[null,null,"­ DocuCentre-V 2265","CT202488 (검정)",20,null,0]
[null,null,null,"CT202489 (파랑)",18,null,0]
[null,null,null,"CT202490 (빨강)",18,null,0]
[null,null,null,"CT202491 (노랑)",18,null,0]
[null,null,null," 드럼CT351088 R1 (검정)",15,null,0]
[null,null,null," 드럼 CT351088 R2 (파랑)",15,null,0]
[null,null,null," 드럼CT351088 R3 (빨강)",15,null,0]
[null,null,null," 드럼CT351088 R4 (노랑)",15,null,0]
[null,null,null,"페토너회수통 CWAA0885",20,null,0]
[null,null,"­ DocuCentre-SC2020","CT202396 검정 (12.5K) 대용량",4,null,0]
[null,null,null,"CT202397 파랑 (14K) 대용량",2,null,0]
[null,null,null,"CT202398 빨강 (14K) 대용량",2,null,0]
[null,null,null,"CT202399 노랑 (14K) 대용량",2,null,0]
[null,null,null,"드럼 CT351053 (색깔별로 각1개)",4,null,0]
[null,null,null,"폐토너회수통 CWAA0869",2,null,0]
[null,null,"- DocuPrint C3300DX\n- DocuPrint C2200","CT350674 (검정) 대용량",7,null,0]
[null,null,null,"CT350675 (파랑) 대용량",4,null,0]
[null,null,null,"CT350676 (빨강) 대용량",4,null,0]
[null,null,null,"CT350677 (노랑) 대용량",4,null,0]
[null,null,"- Docuprint CP405d","CT202033 (검정) 대용량",8,null,0]
[null,null,null,"CT202034 (파랑) 대용량",8,null,0]
[null,null,null,"CT202035 (빨강) 대용량",8,null,0]
[null,null,null,"CT202036 (노랑) 대용량",8,null,0]
[null,null,null,"드럼 CT350983 4색합본",4,null,0]
[null,null,null,"폐토너회수통 EL500268",8,null,0]
[null,null,"- DocuPrint C5005d","CT201664 (검정)",2,null,0]
[null,null,null,"CT201665 (파랑)",2,null,0]
[null,null,null,"CT201666 (빨강)",2,null,0]
[null,null,null,"CT201667 (노랑)",2,null,0]
[null,null,null,"드럼 CT350894 (색깔별로 각1개)",2,null,0]
[null,null,null,"폐토너회수통 CWAA0742",2,null,0]
[null,null,"­ DocuPrint CM415AP","CT202352 (검정) 대용량",2,null,0]
[null,null,null,"CT202353 (파랑) 대용량",2,null,0]
[null,null,null,"CT202354 (빨강) 대용량",2,null,0]
[null,null,null,"CT202355 (노랑) 대용량",2,null,0]
[null,null,null,"드럼 CT351066 4색합본",2,null,0]
[null,null,null,"폐토너회수통 EL500268",2,null,0]
[null,"삼성","- SL-X3280NR","CLT-K804S (검정)",4,null,0]
[null,null,null,"CLT-C804S (파랑)",4,null,0]
[null,null,null,"CLT-M804S (빨강)",4,null,0]
[null,null,null,"CLT-Y804S (노랑)",4,null,0]
[null,null,null,"드럼 CLT-R804 (색깔별로 각1개)",8,null,0]
[null,null,null,"폐토너회수통 CLT-W808",3,null,0]
[null,null,"- SL-X4250LX","CLT-K808S (검정)",2,null,0]
[null,null,null,"CLT-C808S (파랑)",2,null,0]
[null,null,null,"CLT-M808S (빨강)",2,null,0]
[null,null,null,"CLT-Y808S (노랑)",2,null,0]
[null,null,null,"드럼 CLT-R808 (색깔별로 각1개)",2,null,0]
[null,null,null,"폐토너회수통 CLT-W808 ",2,null,0]
[null,null,"- CLX-9201NA","CLT-K809S (검정)",5,null,0]
[null,null,null,"CLT-C809S (파랑)",3,null,0]
[null,null,null,"CLT-M809S (빨강)",3,null,0]
[null,null,null,"CLT-Y809S (노랑)",3,null,0]
[null,null,null,"드럼 CLT-R809 (색깔별로 각1개)",4,null,0]
[null,null,null,"폐토너회수통 CLT-W809",5,null,0]
[null,null,"- SL-C483FW","CLT-K404S (검정)",2,null,0]
[null,null,null,"CLT-C404S (파랑)",2,null,{"$f":"F82*E82","v":0}]
[null,null,null,"CLT-M404S (빨강)",2,null,0]
[null,null,null,"CLT-Y404S (노랑)",2,null,0]
[null,null,null,"드럼 CLT-R406",2,null,0]
[null,null,null,"폐토너회수통 CLT-W406",2,null,0]
[null,null,"- SL-C473FW","CLT-K405S (검정)",2,null,0]
[null,null,null,"CLT-C405S (파랑)",2,null,0]
[null,null,null,"CLT-M405S (빨강)",2,null,0]
[null,null,null,"CLT-Y405S (노랑)",2,null,0]
[null,null,null,"드럼 CLT-R406",2,null,0]
[null,null,null,"폐토너회수통 CLT-W406",2,null,0]
[null,"EPSON","- L800","잉크 T673100",1,null,0]
[null,null,null,"잉크 T673200 ",1,null,0]
[null,null,null,"잉크 T673300 ",1,null,0]
[null,null,null,"잉크 T673400 ",1,null,0]
[null,null,null,"잉크 T673500 ",1,null,0]
[null,null,null,"잉크 T673600 ",1,null,0]
[null,null,"- STYLUS Pro 9900","EPSON 유지보수 탱크 C890191",4,null,0]
[null,null,null,"44\" Eco Matte Paper(1118*30m) 230g roll",4,null,0]
[null,null,null,"EPSON T596100",2,null,0]
[null,null,null,"EPSON T596200",2,null,0]
[null,null,null,"EPSON T596300",2,null,0]
[null,null,null,"EPSON T596400",2,null,0]
[null,null,null,"EPSON T596500",2,null,0]
[null,null,null,"EPSON T596600",2,null,0]
[null,null,null,"EPSON T596700",2,null,0]
[null,null,null,"EPSON T596800",2,null,0]
[null,null,null,"EPSON T596900",2,null,0]
[null,null,null,"EPSON T596A00",2,null,0]
[null,null,null,"EPSON T596B00",2,null,0]
[null,"렉스마크","- Lexmark CX510de\n- Lexmark CX410de\n- Lexmark CS510de","80C8HKE (검정) 대용량",4,null,0]
[null,null,null,"80C8HCE (파랑) 대용량",5,null,0]
[null,null,null,"80C8HME (빨강) 대용량",5,null,0]
[null,null,null,"80C8HYE (노랑) 대용량",5,null,0]
[null,null,null,"80C8XKE (검정) 특대용량",6,null,0]
[null,null,null,"80C8XCE (파랑) 특대용량",4,null,0]
[null,null,null,"80C8XME (빨강) 특대용량",4,null,0]
[null,null,null,"80C8XYE (노랑) 특대용량",4,null,0]
[null,null,null,"70C8XKE (검정) 특대용량",15,null,0]
[null,null,null,"70C8XCE (파랑) 특대용량",13,null,0]
[null,null,null,"70C8XME (빨강) 특대용량",13,null,0]
[null,null,null,"70C8XYE (노랑) 특대용량",13,null,0]
[null,null,null,"(공통) 드럼 70C0P00",8,null,0]
[null,null,null,"(공통) 디벨로퍼 70C0D10 검정",9,null,0]
[null,null,null,"(공통) 디벨로퍼 70C0D20 파랑",8,null,0]
[null,null,null,"(공통) 디벨로퍼 70C0D30 빨강",8,null,0]
[null,null,null,"(공통) 디벨로퍼 70C0D40 노랑",8,null,0]
[null,null,null,"(공통) 폐토너회수통 C540X75G",15,null,0]
[null,null,"- Lexmark C748de","C746H1KG (검정) 대용량",2,null,0]
[null,null,null,"C748H1CG (파랑) 대용량",2,null,0]
[null,null,null,"C748H1MG (빨강) 대용량",2,null,0]
[null,null,null,"C748H1YG (노랑) 대용량",2,null,0]
[null,null,null,"드럼 C734X24G 4색합본",2,null,0]
[null,null,null,"폐토너회수통 C734X77G",3,null,0]
[null,"HP","- LaserJet Pro 400 Color M451dn\n- LaserJet Pro 300 Color M351a\n­ LaserJet Pro 400 Color M451nw","HP CE410X (검정)_대용량",19,null,0]
[null,null,null,"HP CE411A (파랑)",16,null,0]
[null,null,null,"HP CE413A (빨강)",15,null,0]
[null,null,null,"HP CE412A (노랑)",16,null,0]
[null,null,"- LaserJet CP3525n","CE250X (검정) 대용량",2,null,0]
[null,null,null,"CE251A (파랑)",2,null,0]
[null,null,null,"CE252A (노랑)",2,null,0]
[null,null,null,"CE253A (빨강)",2,null,0]
[null,null,null,"폐토너회수통 CE254A",2,null,0]
[null,null,"- LaserJet Pro M452\n- LaserJet Pro M452dn","CF410X (검정) 대용량",1,null,0]
[null,null,null,"CF413X (빨강) 대용량",1,null,{"$f":"F146*E146","v":0}]
[null,null,null,"CF412X (노랑) 대용량",1,null,0]
[null,null,null,"CF411X (파랑) 대용량",1,null,0]
[null,null,"­ Color LaserJet M553","CF360X (검정) 대용량",2,null,0]
[null,null,null,"CF361X (파랑) 대용량",2,null,0]
[null,null,null,"CF362X (노랑) 대용량",2,null,0]
[null,null,null,"CF363X (빨강) 대용량",2,null,0]
[null,null,"- Color LaserJet CP4025\n- Color LaserJet CP4025dn","CE260A (검정)",5,null,0]
[null,null,null,"CE261A (파랑)",4,null,0]
[null,null,null,"CE262A (노랑)",4,null,0]
[null,null,null,"CE263A (빨강)",4,null,0]
[null,null,null,"폐토너회수통 CE265A",4,null,0]
[null,null,"- Color LaserJet CP4525\n- Color LaserJet CP4525n","CE260X (검정) 대용량",2,null,0]
[null,null,null,"CE260A (검정)",2,null,0]
[null,null,null,"CE261A (파랑)",2,null,0]
[null,null,null,"CE262A (노랑)",2,null,0]
[null,null,null,"CE263A (빨강)",2,null,0]
[null,null,null,"폐토너회수통 CE265A ",1,null,0]
[null,"EPSON","- EPSON Sure Color P10070","44\" Eco Matte Paper(1118*30m) 230g roll",5,null,0]
[null,null,null,"EPSON 유지보수 탱크 T619300",5,null,0]
[null,null,null,"EPSON T809000(밝은회색)",5,null,0]
[null,null,null,"EPSON T809100(포토검정)",5,null,0]
[null,null,null,"EPSON T809200(청록)",5,null,0]
[null,null,null,"EPSON T809300(선명한진홍)",5,null,0]
[null,null,null,"EPSON T809400(노랑)",5,null,0]
[null,null,null,"EPSON T809500(밝은청록)",5,null,0]
[null,null,null,"EPSON T809600(선명한밝은진홍)",5,null,0]
[null,null,null,"EPSON T809700(어두운회색)",5,null,0]
[null,null,null,"EPSON T809800(매트검정)",5,null,0]
[null,null,null,"EPSON T809900(회색)",5,null,0]
["흑백","HP","- LaserJet 5200tn\n- LaserJet 5200L","Q7516A",2,null,0]
[null,null,"- LaserJet P2035\n- LaserJet P2035n","CE505A",5,null,0]
[null,null,"- LaserJet P3015","CE255X 대용량",2,null,0]
[null,"후지제록스","- Document Centre 236\n- DocucentreⅡ-2005\n- DocucentreⅢ-2007","CT200417",2,null,0]
[null,null,null,"드럼 CT350769",2,null,0]
[null,null,"­ DocuCentre-V 2060\n­ DocuCentre-V 3060","CT202508",6,null,0]
[null,null,null,"드럼 CT351089",5,null,0]
[null,"삼성","- SL-K3300NR","MLT-D704S",4,null,0]
[null,null,null,"드럼 MLT-R704",3,null,0]
[null,null,null,"폐토너회수통 MLT-W708",4,null,0]
["팩스","삼성","- CF-650\n- CF-650P","MLT-D105L",1,null,0]
[null,null,"- SF-760P","MLT-D101S",1,null,0]
["컬러프린터","후지제록스","­ Docu Print CP315dw","CT202610(검정)",2,null,0]
[null,null,null,"CT202611(파랑)",2,null,0]
[null,null,null,"CT202612(빨강)",2,null,0]
[null,null,null,"CT202613(노랑)",2,null,0]
["흑백","후지제록스","­ DocupPrint 3105","CT350936",1,null,{"$f":"F192*E192","v":0}]
["토너류 투찰금액",{"$nulls":5},{"$f":"SUM(G17:G192)","v":0}]